fUST/lending_fUST_20250626
["ID","MTS","AMOUNT","RATE_DAILY","PERIOD"]
[367753026,1750918244634,-460.0,0.00016968,2]
[367753027,1750918244643,-460.0,0.00016968,2]
[367753028,1750918244652,-460.0,0.00016968,2]
[367753029,1750918244662,-460.0,0.00016968,2]
[367753030,1750918244672,-460.0,0.00016968,2]
[367753031,1750918244682,-460.0,0.00016968,2]
[367753032,1750918244691,-460.0,0.00016968,2]
[367753033,1750918244700,-460.0,0.00016968,2]
[367753034,1750918244710,-460.0,0.00016968,2]
[367753035,1750918244719,-460.0,0.00016968,2]
[367753036,1750918244728,-245.9579736,0.00016968,2]
[367753037,1750918244738,-348.98118321,0.00016968,2]
[367753038,1750918244747,-460.0,0.00016968,2]
[367753039,1750918244756,-460.0,0.00016968,2]
[367753040,1750918244766,-512.42945835,0.00016968,2]
[367753041,1750918244775,-460.0,0.00016968,2]
[367753042,1750918244785,-460.0,0.00016968,2]
[367753043,1750918244795,-460.0,0.00016968,2]
[367753044,1750918244804,-460.0,0.00016968,2]
[367753045,1750918244814,-460.0,0.00016968,2]
[367753046,1750918244824,-460.0,0.00016968,2]
[367753047,1750918244833,-417.48198895,0.00016968,2]
[367753048,1750918244842,-460.0,0.00016968,2]
[367753049,1750918244851,-460.0,0.00016968,2]
[367753050,1750918244861,-460.0,0.00016968,2]
[367753051,1750918244870,-460.0,0.00016968,2]
[367753052,1750918244879,-460.0,0.00016968,2]
[367753053,1750918244888,-460.0,0.00016968,2]
[367753054,1750918244898,-519.61467478,0.00016968,2]
[367753055,1750918244908,-460.0,0.00016968,2]
[367753056,1750918244918,-460.0,0.00016968,2]
[367753057,1750918244930,-460.0,0.00016968,2]
[367753058,1750918244939,-460.0,0.00016968,2]
[367753059,1750918244948,-460.0,0.00016968,2]
[367753060,1750918244957,-460.0,0.00016968,2]
[367753061,1750918244966,-460.0,0.00016968,2]
[367753062,1750918244975,-460.0,0.00016968,2]
[367753063,1750918244986,-460.0,0.00016968,2]
[367753064,1750918244995,-401.43030742,0.00016968,2]
[367753065,1750918245004,-460.0,0.00016968,2]
[367753066,1750918245014,-572.33639811,0.00016968,2]
[367753067,1750918245024,-460.0,0.00016968,2]
[367753068,1750918245033,-460.0,0.00016968,2]
[367753069,1750918245042,-460.0,0.00016968,2]
[367753070,1750918245052,-460.0,0.00016968,2]
[367753071,1750918245061,-460.0,0.00016968,2]
[367753072,1750918245071,-460.0,0.00016968,2]
[367753073,1750918245079,-460.0,0.00016968,2]
[367753074,1750918245088,-781.69,0.00016968,2]
[367753075,1750918245098,-228.40784857,0.00016968,2]
[367753076,1750918245107,-460.0,0.00016968,2]
[367753077,1750918245117,-460.0,0.00016968,2]
[367753078,1750918245125,-460.0,0.00016968,2]
[367753079,1750918245135,-460.0,0.00016968,2]
[367753080,1750918245144,-460.0,0.00016968,2]
[367753081,1750918245154,-460.0,0.00016968,2]
[367753082,1750918245163,-460.0,0.00016969,2]
[367753083,1750918245172,-460.0,0.00016969,2]
[367753084,1750918245182,-500.0,0.00016971,2]
[367753085,1750918245191,-340.0,0.00016999,2]
[367753086,1750918245200,-500.0,0.00017191,2]
[367753087,1750918245210,-460.0,0.0001724,2]
[367753088,1750918245220,-460.0,0.0001724,2]
[367753089,1750918245230,-460.0,0.0001724,2]
[367753090,1750918245240,-460.0,0.0001724,2]
[367753091,1750918245249,-1013.31562939,0.00017241,2]
[367753092,1750918245259,-443.24,0.00017241,2]
[367753093,1750918245268,-460.0,0.00017241,2]
[367753094,1750918245278,-460.0,0.00017241,2]
[367753095,1750918245287,-460.0,0.00017241,2]
[367753096,1750918245297,-460.0,0.00017241,2]
[367753097,1750918245306,-488.9,0.00017241,2]
[367753098,1750918245316,-460.0,0.00017241,2]
[367753099,1750918245328,-460.0,0.00017241,2]
[367753100,1750918245338,-395.84,0.00017241,2]
[367753101,1750918245349,-502.4,0.00017241,2]
[367753102,1750918245359,-475.14,0.00017241,2]
[367753103,1750918245368,-200.74,0.00017241,2]
[367753104,1750918245378,-460.0,0.00017241,2]
[367753105,1750918245388,-460.0,0.00017241,2]
[367753106,1750918245398,-311.06,0.00017241,2]
[367753107,1750918245407,-460.0,0.00017241,2]
[367753108,1750918245416,-220.72,0.00017241,2]
[367753109,1750918245426,-334.82,0.00017241,2]
[367753110,1750918245435,-496.68,0.00017241,2]
[367753111,1750918245445,-460.0,0.00017241,2]
[367753112,1750918245455,-460.0,0.00017241,2]
[367753113,1750918245464,-460.0,0.00017242,2]
[367753114,1750918245473,-476.01041788,0.00017242,2]
[367753115,1750918245483,-460.0,0.00017242,2]
[367753116,1750918245492,-460.0,0.00017242,2]
[367753117,1750918245501,-324.46,0.00017242,2]
[367753118,1750918245511,-460.0,0.00017242,2]
[367753119,1750918245520,-293.04,0.00017242,2]
[367753120,1750918245529,-460.0,0.00017242,2]
[367753121,1750918245539,-588.82,0.00017242,2]
[367753122,1750918245548,-392.36,0.00017242,2]
[367753123,1750918245557,-781.69,0.00017242,2]
[367753124,1750918245567,-460.0,0.00017242,2]
[367753125,1750918245576,-460.0,0.00017242,2]
[367753126,1750918245586,-460.0,0.00017242,2]
[367753127,1750918245595,-460.0,0.00017242,2]
[367753128,1750918245605,-379.45605945,0.00017243,2]
[367753129,1750918245615,-460.0,0.00017514,2]
[367753130,1750918245624,-460.0,0.00017514,2]
[367753131,1750918245633,-460.0,0.00017514,2]
[367753132,1750918245643,-460.0,0.00017514,2]
[367753133,1750918245652,-460.0,0.00017515,2]
[367753134,1750918245661,-460.0,0.00017515,2]
[367753135,1750918245670,-460.0,0.00017515,2]
[367753136,1750918245680,-594.73920799,0.00017515,2]
[367753137,1750918245689,-460.0,0.00017515,2]
[367753138,1750918245698,-308.82,0.00017515,2]
[367753139,1750918245708,-460.0,0.00017515,2]
[367753140,1750918245717,-268.0,0.00017515,2]
[367753142,1750918245730,-460.0,0.00017515,2]
[367753144,1750918245741,-172.4,0.00017515,2]
[367753145,1750918245750,-460.0,0.00017515,2]
[367753146,1750918245759,-460.0,0.00017516,2]
[367753147,1750918245769,-460.0,0.00017516,2]
[367753148,1750918245779,-460.0,0.00017516,2]
[367753149,1750918245788,-460.0,0.00017516,2]
[367753150,1750918245797,-781.69,0.00017516,2]
[367753151,1750918245807,-278.32,0.00017516,2]
[367753152,1750918245817,-460.0,0.00017516,2]
[367753153,1750918245827,-460.0,0.00017516,2]
[367753154,1750918245837,-460.0,0.00017516,2]
[367753155,1750918245847,-1000.0,0.00017739,2]
[367753156,1750918245857,-460.0,0.00017788,2]
[367753157,1750918245867,-460.0,0.00017788,2]
[367753158,1750918245876,-460.0,0.00017788,2]
[367753159,1750918245886,-460.0,0.00017788,2]
[367753160,1750918245895,-460.0,0.00017789,2]
[367753161,1750918245904,-460.0,0.00017789,2]
[367753162,1750918245914,-460.0,0.00017789,2]
[367753163,1750918245925,-399.84,0.00017789,2]
[367753164,1750918245936,-460.0,0.00017789,2]
[367753165,1750918245946,-497.34645578,0.00017789,2]
[367753166,1750918245955,-460.0,0.00017789,2]
[367753167,1750918245965,-352.72,0.0001779,2]
[367753168,1750918245974,-227.49022621,0.0001779,2]
[367753169,1750918245983,-160.02,0.0001779,2]
[367753170,1750918245993,-460.0,0.0001779,2]
[367753171,1750918246003,-781.69,0.0001779,2]
[367753172,1750918246013,-460.0,0.0001779,2]
[367753173,1750918246023,-460.0,0.0001779,2]
[367753174,1750918246032,-460.0,0.0001779,2]
[367753175,1750918246042,-520.40362079,0.000179,2]
[367753176,1750918246052,-460.0,0.00018062,2]
[367753177,1750918246062,-460.0,0.00018062,2]
[367753178,1750918246071,-460.0,0.00018062,2]
[367753179,1750918246081,-460.0,0.00018062,2]
[367753180,1750918246091,-460.0,0.00018063,2]
[367753181,1750918246100,-460.0,0.00018063,2]
[367753182,1750918246110,-460.0,0.00018063,2]
[367753183,1750918246120,-460.0,0.00018063,2]
[367753184,1750918246129,-531.68,0.00018063,2]
[367753185,1750918246139,-420.98027408,0.00018064,2]
[367753186,1750918246148,-464.20922617,0.00018064,2]
[367753187,1750918246157,-460.0,0.00018064,2]
[367753188,1750918246167,-460.0,0.00018064,2]
[367753189,1750918246177,-460.0,0.00018064,2]
[367753190,1750918246187,-460.0,0.00018064,2]
[367753191,1750918246196,-460.0,0.00018064,2]
[367753192,1750918246206,-460.0,0.00018064,2]
[367753193,1750918246214,-664.86,0.00018064,2]
[367753194,1750918246224,-781.69,0.00018064,2]
[367753195,1750918246234,-460.0,0.00018064,2]
[367753196,1750918246243,-460.0,0.00018064,2]
[367753197,1750918246253,-274.04,0.00018064,2]
[367753198,1750918246263,-460.0,0.00018064,2]
[367753199,1750918246272,-754.05619214,0.00018126,2]
[367753200,1750918246281,-460.0,0.00018164,2]
[367753201,1750918246290,-416.63812256,0.00018164,2]
[367753202,1750918246300,-520.40362077,0.00018176,2]
[367753203,1750918246309,-420.0,0.00018236,2]
[367753204,1750918246319,-160.0,0.00018251,2]
[367753205,1750918246328,-160.0,0.00018251,2]
[367753206,1750918246338,-160.0,0.00018251,2]
[367753207,1750918246347,-230.24506774,0.00018251,2]
[367753208,1750918246356,-12560.17507789,0.00018251,2]
[367753209,1750918246365,-160.0,0.00018251,2]
[367753210,1750918246374,-425.22527846,0.00018251,2]
[367753211,1750918246384,-836.92866116,0.00018251,2]
[367753212,1750918246393,-213.72380786,0.00018251,2]
[367753213,1750918246403,-846.92323443,0.00018251,2]
[367753214,1750918246412,-160.0,0.00018251,2]
[367753215,1750918246421,-466.7696,0.00018287,2]
[367753216,1750918246431,-422.6,0.00018336,2]
[367753217,1750918246440,-460.0,0.00018336,2]
[367753218,1750918246450,-460.0,0.00018336,2]
[367753219,1750918246459,-460.0,0.00018336,2]
[367753220,1750918246469,-460.0,0.00018337,2]
[367753221,1750918246478,-460.0,0.00018337,2]
[367753222,1750918246488,-460.0,0.00018337,2]
[367753223,1750918246498,-460.0,0.00018337,2]
[367753224,1750918246507,-460.0,0.00018338,2]
[367753225,1750918246517,-460.0,0.00018338,2]
[367753226,1750918246526,-460.0,0.00018338,2]
[367753227,1750918246536,-340.54151083,0.00018338,2]
[367753228,1750918246545,-460.0,0.00018338,2]
[367753229,1750918246555,-369.68938424,0.00018338,2]
[367753230,1750918246565,-664.86,0.00018338,2]
[367753233,1750918246575,-781.69,0.00018338,2]
[367753234,1750918246584,-460.0,0.00018338,2]
[367753235,1750918246593,-201.04,0.00018338,2]
[367753236,1750918246603,-460.0,0.00018338,2]
[367753237,1750918246612,-520.40362077,0.00018452,2]
[367753238,1750918246621,-329.7,0.0001861,2]
[367753239,1750918246630,-460.0,0.0001861,2]
[367753240,1750918246640,-460.0,0.0001861,2]
[367753241,1750918246650,-460.0,0.00018611,2]
[367753242,1750918246659,-527.57,0.00018611,2]
[367753243,1750918246668,-460.0,0.00018611,2]
[367753244,1750918246678,-460.0,0.00018611,2]
[367753245,1750918246687,-460.0,0.00018612,2]
[367753246,1750918246697,-460.0,0.00018612,2]
[367753247,1750918246706,-460.0,0.00018612,2]
[367753248,1750918246715,-664.86,0.00018612,2]
[367753249,1750918246725,-781.69,0.00018612,2]
[367753250,1750918246734,-460.0,0.00018612,2]
[367753251,1750918246744,-460.0,0.00018612,2]
[367753252,1750918246753,-575.0,0.00018713,2]
[367753253,1750918246764,-520.40362077,0.00018728,2]
[367753254,1750918246773,-575.0,0.00018853,2]
[367753255,1750918246782,-460.0,0.00018884,2]
[367753256,1750918246792,-253.03630585,0.00018884,2]
[367753257,1750918246857,-123.29369415,0.00018884,2]
[367753258,1750918246867,-460.0,0.00018885,2]
[367753259,1750918246876,-460.0,0.00018885,2]
[367753260,1750918247007,-460.0,0.00018885,2]
[367753261,1750918247018,-460.0,0.00018886,2]
[367753262,1750918247028,-460.0,0.00018886,2]
[367753263,1750918247038,-460.0,0.00018886,2]
[367753264,1750918247048,-664.86,0.00018886,2]
[367753265,1750918247057,-233.30971739,0.00018886,2]
[367753266,1750918247069,-548.38028261,0.00018886,2]
[367753267,1750918247079,-416.66201869,0.00018886,2]
[367753270,1750918247090,-43.33798131,0.00018886,2]
[367753272,1750918247099,-416.19806822,0.00018886,2]
[367753274,1750918247204,-43.80193178,0.00018886,2]
[367753275,1750918247214,-244.06673251,0.000189,2]
[367753276,1750918247224,-520.40362077,0.00019003,2]
[367753277,1750918247233,-575.0,0.00019067,2]
[367753278,1750918247242,-575.0,0.00019116,2]
[367753279,1750918247251,-2161.0,0.00019125,2]
[367753280,1750918247262,-654.0,0.00019125,2]
[367753281,1750918247271,-406.0,0.00019125,2]
[367753282,1750918247280,-168.0,0.00019153,2]
[367753283,1750918247290,-460.0,0.00019158,2]
[367753284,1750918247299,-594.07005455,0.00019159,2]
[367753285,1750918247308,-460.0,0.00019159,2]
[367753286,1750918247318,-281.94,0.00019159,2]
[367753287,1750918247328,-460.0,0.0001916,2]
[367753288,1750918247337,-460.0,0.0001916,2]
[367753289,1750918247346,-664.86,0.0001916,2]
[367753290,1750918247356,-781.69,0.0001916,2]
[367753291,1750918247366,-460.0,0.0001916,2]
[367753292,1750918247375,-343.75925175,0.0001916,2]
[367753293,1750918247384,-468.86,0.00019178,2]
[367753294,1750918247393,-191.286053,0.00019178,2]
[367753295,1750918247403,-168.0,0.00019251,2]
[367753296,1750918247412,-520.40362077,0.00019279,2]
[367753297,1750918247422,-168.0,0.0001934,2]
[367753298,1750918247431,-754.05619214,0.00019384,2]
[367753299,1750918247440,-192.0492181,0.00019432,2]
[367753300,1750918247450,-460.0,0.00019433,2]
[367753301,1750918247459,-460.0,0.00019434,2]
[367753302,1750918247469,-460.0,0.00019434,2]
[367753303,1750918247478,-664.86,0.00019434,2]
[367753304,1750918247488,-781.69,0.00019434,2]
[367753305,1750918247498,-460.0,0.00019434,2]
[367753306,1750918247507,-168.0,0.0001955,2]
[367753307,1750918247517,-295.72156022,0.00019555,2]
[367753308,1750918305619,287.769419,0.00013699,2]
[367753310,1750918691101,9648.69700038,0.00024994,60]
[367753311,1750918722449,24900.0,0.00015967,2]
[367753313,1750918860685,500.0,0.000161,2]
[367753314,1750918874865,837.34,0.00023,30]
[367753315,1750918972498,258.41439759,0.00023,30]
[367753364,1750919432476,-300.0,0.00016689,2]
[367753366,1750919432486,-160.0,0.0001669,2]
[367753372,1750919432538,-300.0,0.0001669,2]
[367753374,1750919432547,-432.37558514,0.0001669,2]
[367753376,1750919432557,-460.0,0.0001669,2]
[367753378,1750919432566,-460.0,0.0001669,2]
[367753380,1750919432575,-460.0,0.0001669,2]
[367753382,1750919432585,-233.12817313,0.0001669,2]
[367753384,1750919432596,-460.0,0.0001669,2]
[367753386,1750919432605,-460.0,0.0001669,2]
[367753388,1750919432615,-460.0,0.0001669,2]
[367753390,1750919432624,-12530.9146222,0.00016691,2]
[367753392,1750919432633,-461.37304229,0.00016691,2]
[367753394,1750919432642,-460.0,0.00016691,2]
[367753396,1750919432652,-288.20933116,0.00016691,2]
[367753397,1750919432661,-460.0,0.00016691,2]
[367753399,1750919432670,-433.23730491,0.00016691,2]
[367753400,1750919432679,-463.49939731,0.00016691,2]
[367753402,1750919432688,-563.48818181,0.00016691,2]
[367753403,1750919432697,-492.34,0.00016691,2]
[367753404,1750919432706,-440.76277074,0.00016691,2]
[367753405,1750919432715,-460.0,0.00016691,2]
[367753406,1750919432725,-460.0,0.00016691,2]
[367753407,1750919432739,-405.16051098,0.00016691,2]
[367753408,1750919432748,-401.75313407,0.00016691,2]
[367753409,1750919432757,-460.0,0.00016691,2]
[367753410,1750919432766,-460.0,0.00016691,2]
[367753411,1750919432776,-460.0,0.00016691,2]
[367753412,1750919432785,-460.0,0.00016691,2]
[367753413,1750919432795,-460.0,0.00016691,2]
[367753414,1750919432805,-460.0,0.00016691,2]
[367753415,1750919432814,-460.0,0.00016691,2]
[367753416,1750919432824,-460.0,0.00016691,2]
[367753417,1750919432834,-460.0,0.00016691,2]
[367753418,1750919432854,-460.0,0.00016691,2]
[367753419,1750919432867,-460.0,0.00016691,2]
[367753420,1750919432877,-460.0,0.00016691,2]
[367753421,1750919432887,-460.0,0.00016691,2]
[367753422,1750919432896,-460.0,0.00016691,2]
[367753423,1750919432906,-460.0,0.00016691,2]
[367753424,1750919432916,-460.0,0.00016691,2]
[367753425,1750919432926,-460.0,0.00016691,2]
[367753426,1750919432935,-583.13,0.00016691,2]
[367753427,1750919432945,-460.0,0.00016691,2]
[367753429,1750919432955,-460.0,0.00016691,2]
[367753430,1750919432965,-455.42580867,0.00016691,2]
[367753432,1750919432974,-158.4,0.00016691,2]
[367753433,1750919432984,-460.0,0.00016691,2]
[367753435,1750919432994,-460.0,0.00016691,2]
[367753437,1750919433004,-460.0,0.00016691,2]
[367753439,1750919433014,-460.0,0.00016691,2]
[367753441,1750919433024,-478.87,0.00016691,2]
[367753443,1750919433034,-460.0,0.00016691,2]
[367753444,1750919433043,-460.0,0.00016691,2]
[367753445,1750919433053,-460.0,0.00016691,2]
[367753446,1750919433062,-460.0,0.00016691,2]
[367753447,1750919433072,-460.0,0.00016691,2]
[367753448,1750919433082,-460.0,0.00016691,2]
[367753449,1750919433091,-460.0,0.00016691,2]
[367753450,1750919433101,-460.0,0.00016691,2]
[367753451,1750919433320,-460.0,0.00016691,2]
[367753452,1750919433331,-207.69931827,0.00016691,2]
[367753453,1750919433340,-423.86481928,0.00016691,2]
[367753454,1750919433350,-460.0,0.00016691,2]
[367753455,1750919433360,-460.0,0.00016691,2]
[367753456,1750919433369,-460.0,0.00016691,2]
[367753457,1750919433379,-460.0,0.00016691,2]
[367753458,1750919433388,-460.0,0.00016691,2]
[367753459,1750919433401,-460.0,0.00016691,2]
[367753460,1750919433410,-594.77,0.00016691,2]
[367753461,1750919433420,-460.0,0.00016691,2]
[367753462,1750919433429,-460.0,0.00016691,2]
[367753463,1750919433439,-460.0,0.00016691,2]
[367753464,1750919433448,-460.0,0.00016691,2]
[367753465,1750919433458,-460.0,0.00016691,2]
[367753466,1750919433468,-527.95140508,0.00016691,2]
[367753467,1750919433478,-460.0,0.00016691,2]
[367753468,1750919433488,-460.0,0.00016691,2]
[367753469,1750919433497,-575.12,0.00016691,2]
[367753470,1750919433507,-460.0,0.00016691,2]
[367753471,1750919433516,-460.0,0.00016691,2]
[367753472,1750919433525,-460.0,0.00016691,2]
[367753473,1750919433535,-460.0,0.00016691,2]
[367753474,1750919433544,-553.43,0.00016691,2]
[367753475,1750919433554,-464.60837402,0.00016691,2]
[367753476,1750919433563,-546.41,0.00016691,2]
[367753477,1750919433573,-460.0,0.00016692,2]
[367753478,1750919433583,-460.0,0.00016692,2]
[367753479,1750919433592,-460.0,0.00016692,2]
[367753480,1750919433602,-460.0,0.00016692,2]
[367753481,1750919433611,-157.29771641,0.00016692,2]
[367753482,1750919433621,-460.0,0.00016692,2]
[367753483,1750919433630,-460.0,0.00016692,2]
[367753484,1750919433640,-258.78733364,0.00016692,2]
[367753485,1750919433649,-460.0,0.00016692,2]
[367753486,1750919433659,-460.0,0.00016692,2]
[367753487,1750919433668,-460.0,0.00016692,2]
[367753488,1750919433677,-460.0,0.00016692,2]
[367753489,1750919433686,-460.0,0.00016692,2]
[367753490,1750919433696,-460.0,0.00016692,2]
[367753491,1750919433706,-544.2,0.00016692,2]
[367753492,1750919433715,-460.0,0.00016692,2]
[367753493,1750919433725,-437.39020635,0.00016692,2]
[367753494,1750919433739,-460.0,0.00016692,2]
[367753495,1750919433748,-460.0,0.00016692,2]
[367753496,1750919433758,-460.0,0.00016692,2]
[367753497,1750919433768,-460.0,0.00016692,2]
[367753498,1750919433778,-460.0,0.00016692,2]
[367753499,1750919433788,-460.0,0.00016692,2]
[367753500,1750919433798,-419.22318209,0.00016692,2]
[367753501,1750919433808,-431.24577498,0.00016692,2]
[367753502,1750919433818,-589.55,0.00016692,2]
[367753503,1750919433829,-460.0,0.00016692,2]
[367753504,1750919433838,-416.08000112,0.00016692,2]
[367753505,1750919433848,-460.0,0.00016692,2]
[367753506,1750919433857,-574.23,0.00016692,2]
[367753507,1750919433869,-460.0,0.00016692,2]
[367753508,1750919433878,-460.0,0.00016692,2]
[367753509,1750919433888,-460.0,0.00016692,2]
[367753510,1750919433899,-460.0,0.00016692,2]
[367753511,1750919433908,-190.35,0.00016692,2]
[367753512,1750919433918,-396.70137211,0.00016692,2]
[367753513,1750919433928,-460.0,0.00016692,2]
[367753514,1750919433938,-276.12521588,0.00016692,2]
[367753515,1750919433948,-555.98,0.00016692,2]
[367753516,1750919433958,-460.0,0.00016692,2]
[367753517,1750919433968,-460.0,0.00016692,2]
[367753518,1750919433977,-460.0,0.00016692,2]
[367753519,1750919433987,-460.0,0.00016692,2]
[367753520,1750919433996,-460.0,0.00016692,2]
[367753521,1750919434005,-460.0,0.00016692,2]
[367753522,1750919434015,-460.0,0.00016692,2]
[367753523,1750919434026,-460.0,0.00016692,2]
[367753524,1750919434036,-460.0,0.00016692,2]
[367753525,1750919434046,-510.56232506,0.00016692,2]
[367753526,1750919434056,-460.0,0.00016692,2]
[367753527,1750919434066,-460.0,0.00016692,2]
[367753528,1750919434076,-460.0,0.00016692,2]
[367753529,1750919434085,-556.15,0.00016692,2]
[367753530,1750919434094,-460.0,0.00016692,2]
[367753531,1750919434103,-437.49212001,0.00016692,2]
[367753532,1750919434113,-460.0,0.00016692,2]
[367753533,1750919434122,-460.0,0.00016692,2]
[367753534,1750919434132,-460.0,0.00016692,2]
[367753535,1750919434142,-549.07,0.00016692,2]
[367753536,1750919434151,-460.0,0.00016692,2]
[367753537,1750919434160,-460.0,0.00016692,2]
[367753538,1750919434169,-460.0,0.00016692,2]
[367753539,1750919434179,-460.0,0.00016692,2]
[367753540,1750919434188,-460.0,0.00016692,2]
[367753541,1750919434198,-460.0,0.00016692,2]
[367753542,1750919434208,-460.0,0.00016692,2]
[367753543,1750919434218,-460.0,0.00016692,2]
[367753544,1750919434227,-460.0,0.00016692,2]
[367753545,1750919434237,-460.0,0.00016693,2]
[367753546,1750919434247,-460.0,0.00016693,2]
[367753547,1750919434256,-460.0,0.00016693,2]
[367753548,1750919434266,-150.70151692,0.00016693,2]
[367753549,1750919434275,-363.05395614,0.00016693,2]
[367753550,1750919434285,-224.71995166,0.00016693,2]
[367753551,1750919434295,-460.0,0.00016693,2]
[367753552,1750919434304,-432.12561565,0.00016693,2]
[367753553,1750919434314,-461.4210506,0.00016693,2]
[367753554,1750919434323,-249.79784152,0.00016693,2]
[367753555,1750919434333,-460.0,0.00016693,2]
[367753556,1750919434342,-460.0,0.00016693,2]
[367753557,1750919434355,-240.0,0.00016693,2]
[367753558,1750919434364,-460.0,0.00016693,2]
[367753559,1750919434374,-460.0,0.00016693,2]
[367753560,1750919434383,-460.0,0.00016693,2]
[367753561,1750919434392,-460.0,0.00016693,2]
[367753562,1750919434402,-460.0,0.00016693,2]
[367753563,1750919434412,-460.0,0.00016693,2]
[367753564,1750919434423,-460.0,0.00016693,2]
[367753565,1750919434431,-460.0,0.00016693,2]
[367753566,1750919434440,-460.0,0.00016693,2]
[367753567,1750919434450,-460.0,0.00016693,2]
[367753568,1750919434459,-460.0,0.00016693,2]
[367753569,1750919434469,-460.0,0.00016965,2]
[367753570,1750919434479,-460.0,0.00016965,2]
[367753571,1750919434488,-460.0,0.00016965,2]
[367753572,1750919434498,-460.0,0.00016965,2]
[367753573,1750919434507,-460.0,0.00016965,2]
[367753574,1750919434517,-460.0,0.00016965,2]
[367753575,1750919434527,-460.0,0.00016965,2]
[367753576,1750919434536,-257.96,0.00016965,2]
[367753577,1750919434545,-328.21,0.00016965,2]
[367753578,1750919434554,-217.35,0.00016965,2]
[367753579,1750919434563,-460.0,0.00016965,2]
[367753580,1750919434572,-202.24,0.00016965,2]
[367753581,1750919434583,-460.0,0.00016965,2]
[367753582,1750919434592,-460.0,0.00016965,2]
[367753583,1750919434601,-460.0,0.00016965,2]
[367753584,1750919434610,-227.59,0.00016965,2]
[367753585,1750919434619,-496.92454574,0.00016966,2]
[367753586,1750919434629,-178.89348176,0.00016966,2]
[367753587,1750919434638,-460.0,0.00016966,2]
[367753588,1750919434647,-447.06430385,0.00016966,2]
[367753589,1750919434658,-460.0,0.00016966,2]
[367753590,1750919434667,-460.0,0.00016966,2]
[367753591,1750919434677,-521.87,0.00016966,2]
[367753592,1750919434686,-460.0,0.00016966,2]
[367753593,1750919434695,-480.37038383,0.00016966,2]
[367753594,1750919434705,-460.0,0.00016966,2]
[367753595,1750919434715,-460.0,0.00016966,2]
[367753596,1750919434724,-460.0,0.00016966,2]
[367753597,1750919434734,-178.75,0.00016966,2]
[367753598,1750919434745,-556.15,0.00016966,2]
[367753599,1750919434755,-460.0,0.00016966,2]
[367753600,1750919434764,-460.0,0.00016966,2]
[367753601,1750919434775,-549.07,0.00016966,2]
[367753602,1750919434784,-460.0,0.00016967,2]
[367753603,1750919434794,-460.0,0.00016967,2]
[367753604,1750919434803,-460.0,0.00016967,2]
[367753605,1750919434813,-460.0,0.00017239,2]
[367753606,1750919434822,-460.0,0.00017239,2]
[367753607,1750919434831,-398.93,0.00017239,2]
[367753608,1750919434841,-460.0,0.00017239,2]
[367753609,1750919434850,-513.43961461,0.00017239,2]
[367753610,1750919434860,-460.0,0.00017239,2]